[Event "GER-ch Youth U10 2019"]
[Site "Willingen"]
[Date "2019.06.14"]
[Round "10.9"]
[White "Jahnz, Laurin"]
[Black "Haubold, Christian Lucas"]
[Result "1/2-1/2"]
[ECO "B27"]
[WhiteElo "1497"]
[BlackElo "1387"]
[Annotator "NA"]
[PlyCount "70"]
[EventDate "2019.06.07"]
[EventType "swiss"]
[EventRounds "11"]
[EventCountry "GER"]
[SourceTitle "playchess.com"]
[Source "ChessBase"]
[SourceQuality "1"]
[TimeControl "40/4500+30:900+30"]

1. e4 {[%emt 0:00:00]} c5 {[%emt 0:00:00]} 2. Nf3 {[%emt 0:00:00]} g6 {[%emt 0:00:00]} 3. c3 {[%emt 0:01:09]} Nf6 {[%emt 0:01:48]} 4. e5 {[%emt 0:01:19]} Nd5 {[%emt 0:00:10]} 5. d4 {[%emt 0:00:27]} cxd4 {[%emt 0:00:13]} 6. cxd4 {[%emt 0:00:50]} Nc6 {[%emt 0:03:25]} 7. Nc3 {[%emt 0:02:52]} e6 {[%emt 0:13:01]} 8. Nxd5 {[%emt 0:01:47]} exd5 {[%emt 0:00:22]} 9. Be2 {[%emt 0:03:12]} d6 {[%emt 0:06:48]} 10. exd6 {[%emt 0:03:35]} Qxd6 {[%emt 0:00:08]} 11. O-O {[%emt 0:00:34]} Bg7 {[%emt 0:00:18]} 12. Re1 {[%emt 0:02:09]} O-O {[%emt 0:00:08]} 13. Be3 {[%emt 0:02:09]} Bg4 {[%emt 0:00:45]} 14. h3 {[%emt 0:01:05]} Bxf3 {[%emt 0:04:33]} 15. Bxf3 {[%emt 0:00:50]} Rad8 {[%emt 0:00:35]} 16. a3 {[%emt 0:02:55]} Qc7 {[%emt 0:03:52]} 17. Qd2 {[%emt 0:03:23]} Qb6 {[%emt 0:00:51]} 18. Red1 {[%emt 0:01:55]} Na5 {[%emt 0:05:12]} 19. Qb4 {[%emt 0:09:23]} Nc4 {[%emt 0:05:40]} 20. Qxb6 {[%emt 0:00:47]} Nxb6 {[%emt 0:00:39]} 21. b3 {[%emt 0:01:33]} Rc8 {[%emt 0:01:14]} 22. Rac1 {[%emt 0:01:24]} f5 {[%emt 0:04:58]} 23. Rc5 {[%emt 0:05:35]} Rcd8 {[%emt 0:05:50]} 24. Rc7 {[%emt 0:02:11]} Rf7 {[%emt 0:01:37]} 25. Rxf7 {[%emt 0:00:58]} Kxf7 {[%emt 0:00:12]} 26. Rc1 {[%emt 0:00:53]} Ke6 {[%emt 0:00:16]} 27. Rc7 {[%emt 0:01:36]} Rd7 {[%emt 0:00:08]} 28. Rxd7 {[%emt 0:00:20]} Nxd7 {[%emt 0:00:40]} 29. g3 {[%emt 0:00:47]} h6 {[%emt 0:01:33]} 30. h4 {[%emt 0:00:13]} Nf6 {[%emt 0:00:27]} 31. Kf1 {[%emt 0:01:07]} Ne4 {[%emt 0:00:58]} 32. Ke2 {[%emt 0:02:54]} Nd6 {[%emt 0:02:42]} 33. Kd3 {[%emt 0:01:41]} b5 {[%emt 0:01:55]} 34. Bd1 {[%emt 0:03:53]} Ne4 {[%emt 0:02:07]} 35. Bf3 {[%emt 0:03:23]} a5 {[%emt 0:00:52] normal} 1/2-1/2

[Event "GER-ch Youth U10 2019"]
[Site "Willingen"]
[Date "2019.06.15"]
[Round "11.1"]
[White "Helms, Finn"]
[Black "Torosyan, Bagrat"]
[Result "1-0"]
[ECO "A45"]
[WhiteElo "1773"]
[BlackElo "1444"]
[Annotator "NA"]
[PlyCount "79"]
[EventDate "2019.06.07"]
[EventType "swiss"]
[EventRounds "11"]
[EventCountry "GER"]
[SourceTitle "playchess.com"]
[Source "ChessBase"]
[SourceQuality "1"]
[TimeControl "40/4500+30:900+30"]

1. d4 {[%emt 0:00:00]} Nf6 {[%emt 0:00:00]} 2. Bf4 {[%emt 0:00:00]} e6 {[%emt 0:00:00]} 3. e3 {[%emt 0:00:00]} c5 {[%emt 0:00:00]} 4. c3 {[%emt 0:00:00]} d5 {[%emt 0:00:00]} 5. Nd2 {[%emt 0:00:08]} Bd6 {[%emt 0:00:00]} 6. Bg3 {[%emt 0:00:20]} Qc7 {[%emt 0:00:07]} 7. Ngf3 {[%emt 0:01:17]} Nbd7 {[%emt 0:00:15]} 8. Bd3 {[%emt 0:01:01]} O-O {[%emt 0:00:24]} 9. O-O {[%emt 0:01:10]} Bxg3 {[%emt 0:00:10]} 10. hxg3 {[%emt 0:00:20]} cxd4 {[%emt 0:00:29]} 11. exd4 {[%emt 0:00:10]} b6 {[%emt 0:01:27]} 12. Re1 {[%emt 0:00:44]} a5 {[%emt 0:00:12]} 13. Qe2 {[%emt 0:00:21]} Qa7 {[%emt 0:02:52]} 14. Ne5 {[%emt 0:00:45]} Nxe5 {[%emt 0:00:21]} 15. dxe5 {[%emt 0:00:36]} Nd7 {[%emt 0:00:41]} 16. Nf3 {[%emt 0:00:46]} h6 {[%emt 0:00:42]} 17. Nd4 {[%emt 0:00:52]} Nc5 {[%emt 0:06:22]} 18. Nb5 {[%emt 0:02:37]} Qd7 {[%emt 0:00:10]} 19. Nd6 {[%emt 0:00:45]} Nxd3 {[%emt 0:00:30]} 20. Qxd3 {[%emt 0:00:07]} Ba6 {[%emt 0:00:12]} 21. Qe3 {[%emt 0:00:53]} f6 {[%emt 0:02:47]} 22. f4 {[%emt 0:01:18]} fxe5 {[%emt 0:02:39]} 23. Qxe5 {[%emt 0:00:37]} Rf6 {[%emt 0:00:35]} 24. f5 {[%emt 0:00:11]} exf5 {[%emt 0:02:26]} 25. Qxd5+ {[%emt 0:00:07]} Kh7 {[%emt 0:06:19]} 26. Qxa8 {[%emt 0:00:18]} Bd3 {[%emt 0:00:35]} 27. Qf3 {[%emt 0:04:39]} Rxd6 {[%emt 0:01:13]} 28. Rad1 {[%emt 0:00:22]} Be4 {[%emt 0:02:18]} 29. Rxd6 {[%emt 0:01:09]} Qxd6 {[%emt 0:00:05]} 30. Qe3 {[%emt 0:00:15]} Qc6 {[%emt 0:01:21]} 31. Re2 {[%emt 0:00:13]} Qa4 {[%emt 0:02:06]} 32. b3 {[%emt 0:00:44]} Qc6 {[%emt 0:00:08]} 33. g4 {[%emt 0:00:15]} g6 {[%emt 0:00:37]} 34. gxf5 {[%emt 0:00:09]} gxf5 {[%emt 0:00:07]} 35. Qd4 {[%emt 0:00:13]} Kg6 {[%emt 0:06:34]} 36. Rd2 {[%emt 0:00:21]} Kg5 {[%emt 0:00:34]} 37. Qg7+ {[%emt 0:00:08]} Kh5 {[%emt 0:00:38]} 38. g4+ {[%emt 0:00:40]} Kh4 {[%emt 0:05:49]} 39. Rh2+ {[%emt 0:00:14]} Kg3 {[%emt 0:00:34]} 40. gxf5+ {[%emt 0:00:13] normal} 1-0

[Event "GER-ch Youth U10 2019"]
[Site "Willingen"]
[Date "2019.06.15"]
[Round "11.2"]
[White "Grabs, Peter"]
[Black "Sauer, Tim"]
[Result "1/2-1/2"]
[ECO "B12"]
[WhiteElo "1575"]
[BlackElo "1553"]
[Annotator "NA"]
[PlyCount "62"]
[EventDate "2019.06.07"]
[EventType "swiss"]
[EventRounds "11"]
[EventCountry "GER"]
[SourceTitle "playchess.com"]
[Source "ChessBase"]
[SourceQuality "1"]
[TimeControl "40/4500+30:900+30"]

1. e4 {[%emt 0:00:00]} c6 {[%emt 0:00:00]} 2. d4 {[%emt 0:00:00]} d5 {[%emt 0:00:00]} 3. f3 {[%emt 0:00:00]} dxe4 {[%emt 0:03:00]} 4. fxe4 {[%emt 0:00:00]} e5 {[%emt 0:01:45]} 5. Nf3 {[%emt 0:00:00]} exd4 {[%emt 0:30:46]} 6. Bc4 {[%emt 0:01:38]} Be6 {[%emt 0:03:40]} 7. Bxe6 {[%emt 0:00:24]} fxe6 {[%emt 0:00:08]} 8. O-O {[%emt 0:01:04]} Be7 {[%emt 0:12:05]} 9. e5 {[%emt 0:08:58]} c5 {[%emt 0:03:57]} 10. Nbd2 {[%emt 0:00:34]} Nc6 {[%emt 0:03:43]} 11. Ne4 {[%emt 0:01:34]} Qd5 {[%emt 0:01:05]} 12. Ng3 {[%emt 0:21:19]} O-O-O {[%emt 0:03:11]} 13. Nh5 {[%emt 0:07:22]} Nxe5 {[%emt 0:01:59]} 14. Nxg7 {[%emt 0:01:34]} Rf8 {[%emt 0:03:41]} 15. Nxe5 {[%emt 0:03:00]} Rxf1+ {[%emt 0:03:36]} 16. Kxf1 {[%emt 0:05:08]} Qxe5 {[%emt 0:00:52]} 17. Qg4 {[%emt 0:04:44]} Qf6+ {[%emt 0:01:04]} 18. Kg1 {[%emt 0:01:27]} Kd7 {[%emt 0:01:11]} 19. Nh5 {[%emt 0:01:20]} Qf7 {[%emt 0:03:40]} 20. Bd2 {[%emt 0:03:05]} Nf6 {[%emt 0:01:47]} 21. Nxf6+ {[%emt 0:00:20]} Qxf6 {[%emt 0:00:41]} 22. Rf1 {[%emt 0:00:55]} Qe5 {[%emt 0:00:37]} 23. Re1 {[%emt 0:01:50]} Qf6 {[%emt 0:00:40]} 24. Qe4 {[%emt 0:01:21]} Rb8 {[%emt 0:01:27]} 25. Bf4 {[%emt 0:00:55]} Bd6 {[%emt 0:01:11]} 26. Qxh7+ {[%emt 0:00:30]} Kc6 {[%emt 0:00:18]} 27. Qe4+ {[%emt 0:00:34]} Kd7 {[%emt 0:00:08]} 28. Bxd6 {[%emt 0:03:58]} Kxd6 {[%emt 0:00:14]} 29. Rf1 {[%emt 0:01:03]} Qg5 {[%emt 0:00:25]} 30. h4 {[%emt 0:01:58]} Qe5 {[%emt 0:00:42]} 31. Qf3 {[%emt 0:01:53]} b6 {[%emt 0:00:35] normal} 1/2-1/2

[Event "GER-ch Youth U10 2019"]
[Site "Willingen"]
[Date "2019.06.15"]
[Round "11.3"]
[White "Besou, Hussain"]
[Black "Ermitsch, Magnus"]
[Result "1-0"]
[ECO "E11"]
[WhiteElo "1785"]
[BlackElo "1843"]
[Annotator "NA"]
[PlyCount "45"]
[EventDate "2019.06.07"]
[EventType "swiss"]
[EventRounds "11"]
[EventCountry "GER"]
[SourceTitle "playchess.com"]
[Source "ChessBase"]
[SourceQuality "1"]
[TimeControl "40/4500+30:900+30"]

1. d4 {[%emt 0:00:00]} Nf6 {[%emt 0:00:51]} 2. c4 {[%emt 0:00:00]} e6 {[%emt 0:00:49]} 3. Nf3 {[%emt 0:00:23]} Bb4+ {[%emt 0:00:38]} 4. Bd2 {[%emt 0:00:19]} c5 {[%emt 0:00:43]} 5. Bxb4 {[%emt 0:00:23]} cxb4 {[%emt 0:00:17]} 6. Nbd2 {[%emt 0:00:10]} O-O {[%emt 0:03:37]} 7. e4 {[%emt 0:00:37]} d6 {[%emt 0:00:56]} 8. Bd3 {[%emt 0:00:29]} Re8 {[%emt 0:17:01]} 9. O-O {[%emt 0:04:21]} e5 {[%emt 0:00:41]} 10. h3 {[%emt 0:01:04]} Nc6 {[%emt 0:00:55]} 11. d5 Nb8 {[%emt 0:02:44]} 12. Ne1 {[%emt 0:02:52]} Nbd7 {[%emt 0:02:21]} 13. a3 {[%emt 0:04:44]} bxa3 {[%emt 0:00:17]} 14. Rxa3 {[%emt 0:00:12]} Nf8 {[%emt 0:01:54]} 15. b4 {[%emt 0:02:09]} Qb6 {[%emt 0:02:22]} 16. Qa4 {[%emt 0:03:01]} Bd7 {[%emt 0:02:18]} 17. Qa5 {[%emt 0:02:02]} Rec8 {[%emt 0:02:09]} 18. Nc2 {[%emt 0:02:09]} Qxa5 {[%emt 0:01:26]} 19. Rxa5 {[%emt 0:02:21]} b5 {[%emt 0:01:13]} 20. f3 {[%emt 0:01:11]} Nh5 {[%emt 0:02:23]} 21. Rfa1 {[%emt 0:04:59]} Nf4 {[%emt 0:01:10]} 22. Bf1 {[%emt 0:00:13]} bxc4 {[%emt 0:02:33]} 23. Nxc4 {[%emt 0:00:45] normal} 1-0

[Event "GER-ch Youth U10 2019"]
[Site "Willingen"]
[Date "2019.06.15"]
[Round "11.4"]
[White "Haubold, Sebastian Marcel"]
[Black "Arora, Abhiraaj"]
[Result "0-1"]
[ECO "C77"]
[WhiteElo "1506"]
[BlackElo "1454"]
[Annotator "NA"]
[PlyCount "87"]
[EventDate "2019.06.07"]
[EventType "swiss"]
[EventRounds "11"]
[EventCountry "GER"]
[SourceTitle "playchess.com"]
[Source "ChessBase"]
[SourceQuality "1"]
[TimeControl "40/4500+30:900+30"]

1. e4 {[%emt 0:00:00]} e5 {[%emt 0:00:00]} 2. Nf3 {[%emt 0:00:00]} Nc6 {[%emt 0:00:00]} 3. Bb5 {[%emt 0:00:00]} a6 {[%emt 0:00:00]} 4. Ba4 {[%emt 0:00:00]} Nf6 {[%emt 0:00:00]} 5. d4 {[%emt 0:00:28]} exd4 {[%emt 0:01:25]} 6. O-O {[%emt 0:01:06]} Be7 {[%emt 0:00:37]} 7. Re1 {[%emt 0:01:11]} b5 {[%emt 0:01:15]} 8. Bb3 {[%emt 0:00:26]} d6 {[%emt 0:01:08]} 9. Bd5 {[%emt 0:04:57]} Nxd5 {[%emt 0:01:32]} 10. exd5 {[%emt 0:00:10]} Nb4 {[%emt 0:00:19]} 11. Nxd4 {[%emt 0:00:14]} Bb7 {[%emt 0:02:01]} 12. Nc3 {[%emt 0:03:59]} O-O {[%emt 0:05:06]} 13. a3 {[%emt 0:05:55]} Nxd5 {[%emt 0:03:48]} 14. Nf5 {[%emt 0:00:22]} Nxc3 {[%emt 0:00:17]} 15. Nxe7+ {[%emt 0:00:06]} Qxe7 {[%emt 0:00:35]} 16. bxc3 {[%emt 0:09:23]} Qf6 {[%emt 0:00:46]} 17. Re3 {[%emt 0:04:48]} Rfe8 {[%emt 0:07:34]} 18. Rg3 {[%emt 0:10:53]} Be4 {[%emt 0:01:44]} 19. Bg5 {[%emt 0:06:10]} Qe6 {[%emt 0:07:02]} 20. Qd2 {[%emt 0:09:28]} Bxc2 {[%emt 0:04:45]} 21. h4 {[%emt 0:07:36]} Bg6 {[%emt 0:02:38]} 22. Rd1 {[%emt 0:08:37]} Qe5 {[%emt 0:04:20]} 23. Re3 {[%emt 0:02:30]} Qc5 {[%emt 0:01:28]} 24. Qb2 {[%emt 0:02:13]} a5 {[%emt 0:03:15]} 25. Rde1 {[%emt 0:02:18]} Rxe3 {[%emt 0:01:12]} 26. Rxe3 {[%emt 0:00:09]} h6 {[%emt 0:00:27]} 27. Bf4 {[%emt 0:00:23]} Qf5 {[%emt 0:05:29]} 28. Bg3 {[%emt 0:00:46]} Qb1+ {[%emt 0:02:10]} 29. Qxb1 {[%emt 0:00:25]} Bxb1 {[%emt 0:00:06]} 30. Re7 {[%emt 0:00:16]} Rc8 {[%emt 0:00:18]} 31. Kf1 {[%emt 0:01:22]} Bf5 {[%emt 0:00:28]} 32. Re1 {[%emt 0:00:23]} Bd3+ {[%emt 0:00:37]} 33. Kg1 {[%emt 0:00:07]} Bc4 {[%emt 0:00:18]} 34. f3 {[%emt 0:00:32]} d5 {[%emt 0:00:51]} 35. Re7 c5 {[%emt 0:00:52]} 36. Bd6 {[%emt 0:02:39]} d4 {[%emt 0:01:59]} 37. cxd4 {[%emt 0:00:56]} cxd4 {[%emt 0:00:24]} 38. Bc7 {[%emt 0:00:14]} b4 {[%emt 0:01:30]} 39. axb4 {[%emt 0:00:38]} axb4 {[%emt 0:00:08]} 40. Bb6 {[%emt 0:01:14]} d3 {[%emt 0:00:23]} 41. Re1 {[%emt 0:15:07]} Bb3 {[%emt 0:17:35]} 42. Be3 {[%emt 0:00:30]} Rd8 {[%emt 0:00:39]} 43. Bd2 {[%emt 0:00:14]} Bc2 {[%emt 0:02:15]} 44. Bxb4 {[%emt 0:00:56] normal} 0-1

[Event "GER-ch Youth U10 2019"]
[Site "Willingen"]
[Date "2019.06.15"]
[Round "11.5"]
[White "Xue, Luka"]
[Black "Navarro Jahnke, Leo"]
[Result "1-0"]
[ECO "E91"]
[WhiteElo "1429"]
[BlackElo "1334"]
[Annotator "NA"]
[PlyCount "35"]
[EventDate "2019.06.07"]
[EventType "swiss"]
[EventRounds "11"]
[EventCountry "GER"]
[SourceTitle "playchess.com"]
[Source "ChessBase"]
[SourceQuality "1"]
[TimeControl "40/4500+30:900+30"]

1. d4 {[%emt 0:00:00]} Nf6 {[%emt 0:00:00]} 2. Nf3 {[%emt 0:00:00]} g6 {[%emt 0:00:00]} 3. c4 {[%emt 0:00:13]} Bg7 {[%emt 0:00:00]} 4. Nc3 {[%emt 0:00:23]} O-O {[%emt 0:00:16]} 5. e4 {[%emt 0:00:15]} d6 {[%emt 0:00:14]} 6. Be2 {[%emt 0:00:13]} Nbd7 {[%emt 0:00:10]} 7. O-O {[%emt 0:00:35]} c5 {[%emt 0:00:24]} 8. Be3 {[%emt 0:08:50]} Ng4 {[%emt 0:01:29]} 9. Bf4 {[%emt 0:04:01]} f6 {[%emt 0:04:05]} 10. h3 {[%emt 0:00:30]} f5 {[%emt 0:00:43]} 11. Qd2 {[%emt 0:02:06]} fxe4 {[%emt 0:02:42]} 12. Nxe4 {[%emt 0:02:03]} Nge5 {[%emt 0:00:30]} 13. Neg5 {[%emt 0:05:55]} Nf6 {[%emt 0:02:31]} 14. d5 {[%emt 0:03:50]} a6 {[%emt 0:05:23]} 15. Rae1 {[%emt 0:04:40]} h6 {[%emt 0:02:27]} 16. Ne6 {[%emt 0:00:25]} Bxe6 {[%emt 0:00:29]} 17. dxe6 {[%emt 0:00:20]} Nh5 {[%emt 0:03:11] normal} 18. Bh2 {[%emt 0:02:35] normal} 1-0

[Event "GER-ch Youth U10 2019"]
[Site "Willingen"]
[Date "2019.06.15"]
[Round "11.6"]
[White "Sommer, Justus"]
[Black "Li, David"]
[Result "0-1"]
[ECO "B13"]
[WhiteElo "1684"]
[BlackElo "1418"]
[Annotator "NA"]
[PlyCount "66"]
[EventDate "2019.06.07"]
[EventType "swiss"]
[EventRounds "11"]
[EventCountry "GER"]
[SourceTitle "playchess.com"]
[Source "ChessBase"]
[SourceQuality "1"]
[TimeControl "40/4500+30:900+30"]

1. e4 {[%emt 0:00:05]} c6 {[%emt 0:00:00]} 2. d4 {[%emt 0:00:06]} d5 {[%emt 0:00:00]} 3. exd5 {[%emt 0:00:09]} cxd5 {[%emt 0:00:00]} 4. Bd3 {[%emt 0:00:11]} Nf6 {[%emt 0:00:07]} 5. c3 {[%emt 0:00:13]} e6 {[%emt 0:00:26]} 6. Bf4 {[%emt 0:00:24]} Nbd7 {[%emt 0:00:35]} 7. Nf3 {[%emt 0:00:33]} Qb6 {[%emt 0:00:52]} 8. Qb3 {[%emt 0:00:58]} Be7 {[%emt 0:00:20]} 9. O-O {[%emt 0:01:16]} O-O {[%emt 0:00:10]} 10. Nbd2 {[%emt 0:00:22]} Qxb3 {[%emt 0:00:48]} 11. axb3 {[%emt 0:00:19]} b6 {[%emt 0:01:04]} 12. Ne5 {[%emt 0:01:20]} Nxe5 {[%emt 0:00:43]} 13. Bxe5 {[%emt 0:00:20]} Bb7 {[%emt 0:00:37]} 14. Nf3 {[%emt 0:00:43]} a5 {[%emt 0:00:40]} 15. h3 {[%emt 0:01:30]} Rac8 {[%emt 0:00:39]} 16. b4 {[%emt 0:02:15]} Ra8 {[%emt 0:02:23]} 17. b5 {[%emt 0:01:20]} Rfc8 {[%emt 0:01:11]} 18. Bc2 {[%emt 0:02:41]} Ne4 {[%emt 0:03:35]} 19. Bxe4 {[%emt 0:07:00]} dxe4 {[%emt 0:00:26]} 20. Nd2 {[%emt 0:00:11]} a4 {[%emt 0:00:14]} 21. Nb1 {[%emt 0:04:40]} Bd5 {[%emt 0:02:34]} 22. Re1 {[%emt 0:02:10]} Ra5 {[%emt 0:05:58]} 23. Nd2 {[%emt 0:09:52]} a3 {[%emt 0:31:28]} 24. b4 {[%emt 0:06:47]} Ra7 {[%emt 0:00:46]} 25. c4 {[%emt 0:02:00]} Bxb4 {[%emt 0:02:12]} 26. cxd5 {[%emt 0:00:30]} Bxd2 {[%emt 0:00:29]} 27. Re2 {[%emt 0:00:30]} Bc3 {[%emt 0:00:33]} 28. Rc2 {[%emt 0:03:38]} exd5 {[%emt 0:00:59]} 29. Kh2 {[%emt 0:00:33]} Raa8 {[%emt 0:00:25]} 30. Rac1 {[%emt 0:00:39]} a2 31. Rxc3 {[%emt 0:00:14]} Rxc3 {[%emt 0:00:36]} 32. Ra1 Rb3 33. Bf4 {[%emt 0:00:48]} Rb1 {[%emt 0:00:24] normal} 0-1

[Event "GER-ch Youth U10 2019"]
[Site "Willingen"]
[Date "2019.06.15"]
[Round "11.7"]
[White "Huber, Benedikt"]
[Black "Zobel, Christian"]
[Result "0-1"]
[ECO "C25"]
[WhiteElo "1441"]
[BlackElo "1404"]
[Annotator "NA"]
[PlyCount "44"]
[EventDate "2019.06.07"]
[EventType "swiss"]
[EventRounds "11"]
[EventCountry "GER"]
[SourceTitle "playchess.com"]
[Source "ChessBase"]
[SourceQuality "1"]
[TimeControl "40/4500+30:900+30"]

1. e4 {[%emt 0:00:00]} e5 {[%emt 0:00:00]} 2. Nc3 {[%emt 0:00:00]} Bc5 {[%emt 0:00:20]} 3. g3 {[%emt 0:00:00]} Nc6 {[%emt 0:01:03]} 4. Bg2 {[%emt 0:00:03]} Nf6 {[%emt 0:01:20]} 5. d3 {[%emt 0:00:21]} d6 {[%emt 0:01:32]} 6. Bd2 {[%emt 0:01:22]} Be6 {[%emt 0:03:02]} 7. Na4 {[%emt 0:01:23]} Bb6 {[%emt 0:02:12]} 8. Nxb6 {[%emt 0:00:07]} axb6 {[%emt 0:00:09]} 9. a3 {[%emt 0:01:06]} d5 {[%emt 0:04:30]} 10. exd5 {[%emt 0:02:33]} Bxd5 {[%emt 0:00:15]} 11. Nf3 {[%emt 0:01:02]} O-O {[%emt 0:05:57]} 12. O-O {[%emt 0:04:30]} e4 {[%emt 0:04:29]} 13. dxe4 {[%emt 0:09:38]} Bxe4 {[%emt 0:00:29]} 14. Qc1 {[%emt 0:09:22]} h6 {[%emt 0:09:47]} 15. Rd1 {[%emt 0:04:21]} Bxf3 {[%emt 0:02:16]} 16. Bxf3 {[%emt 0:01:03]} Nd4 {[%emt 0:00:14]} 17. Kg2 {[%emt 0:08:30]} Nxf3 {[%emt 0:00:30]} 18. Kxf3 {[%emt 0:00:30]} Qd5+ {[%emt 0:03:53]} 19. Ke2 {[%emt 0:01:57]} Qc4+ {[%emt 0:05:00]} 20. Ke1 {[%emt 0:06:03]} Ng4 {[%emt 0:00:29]} 21. h3 {[%emt 0:10:02]} Nh2 {[%emt 0:00:12]} 22. Be3 {[%emt 0:01:27]} Nf3# {normal} 0-1

[Event "GER-ch Youth U10 2019"]
[Site "Willingen"]
[Date "2019.06.15"]
[Round "11.7"]
[White "Huber, Benedikt Thomas"]
[Black "Zobel, Christian"]
[Result "0-1"]
[ECO "C25"]
[WhiteElo "1441"]
[BlackElo "1404"]
[Annotator "NA"]
[PlyCount "38"]
[EventDate "2019.06.07"]
[EventType "swiss"]
[EventRounds "11"]
[EventCountry "GER"]
[SourceTitle "playchess.com"]
[Source "ChessBase"]
[SourceQuality "1"]
[TimeControl "40/4500+30:900+30"]

1. e4 {[%emt 0:00:00]} e5 {[%emt 0:00:00]} 2. Nc3 {[%emt 0:00:00]} Bc5 {[%emt 0:00:20]} 3. g3 {[%emt 0:00:00]} Nc6 {[%emt 0:01:03]} 4. Bg2 {[%emt 0:00:03]} Nf6 {[%emt 0:01:20]} 5. d3 {[%emt 0:00:21]} d6 {[%emt 0:01:32]} 6. Bd2 {[%emt 0:01:22]} Be6 {[%emt 0:03:02]} 7. Na4 {[%emt 0:01:23]} Bb6 {[%emt 0:02:12]} 8. Nxb6 {[%emt 0:00:07]} axb6 {[%emt 0:00:09]} 9. a3 {[%emt 0:01:06]} d5 {[%emt 0:04:30]} 10. exd5 {[%emt 0:02:33]} Bxd5 {[%emt 0:00:15]} 11. Nf3 {[%emt 0:01:02]} O-O {[%emt 0:05:57]} 12. O-O {[%emt 0:04:30]} e4 {[%emt 0:04:29]} 13. dxe4 {[%emt 0:09:38]} Bxe4 {[%emt 0:00:29]} 14. Qc1 {[%emt 0:09:22]} h6 {[%emt 0:09:47]} 15. Rd1 {[%emt 0:04:21]} Bxf3 {[%emt 0:02:16]} 16. Bxf3 {[%emt 0:01:03]} Nd4 {[%emt 0:00:14]} 17. Kg2 {[%emt 0:08:30]} Nxf3 {[%emt 0:00:30]} 18. Kxf3 {[%emt 0:00:30]} Qd5+ {[%emt 0:03:53]} 19. Ke2 {[%emt 0:01:57]} Qc4+ {[%emt 0:05:00] normal} 0-1

[Event "GER-ch Youth U10 2019"]
[Site "Willingen"]
[Date "2019.06.15"]
[Round "11.8"]
[White "Aniol, Nico"]
[Black "Jahnz, Laurin"]
[Result "1/2-1/2"]
[ECO "C54"]
[WhiteElo "1406"]
[BlackElo "1497"]
[Annotator "NA"]
[PlyCount "51"]
[EventDate "2019.06.07"]
[EventType "swiss"]
[EventRounds "11"]
[EventCountry "GER"]
[SourceTitle "playchess.com"]
[Source "ChessBase"]
[SourceQuality "1"]
[TimeControl "40/4500+30:900+30"]

1. e4 {[%emt 0:00:00]} e5 {[%emt 0:00:00]} 2. Nf3 {[%emt 0:00:00]} Nc6 {[%emt 0:00:00]} 3. Bc4 {[%emt 0:00:29]} Bc5 {[%emt 0:00:00]} 4. c3 {[%emt 0:00:30]} Nf6 {[%emt 0:00:00]} 5. b4 {[%emt 0:00:21]} Bb6 {[%emt 0:00:13]} 6. d3 {[%emt 0:00:19]} d6 {[%emt 0:00:22]} 7. a4 {[%emt 0:00:32]} a5 {[%emt 0:02:10]} 8. b5 {[%emt 0:00:14]} Ne7 {[%emt 0:00:41]} 9. Qb3 {[%emt 0:00:30]} O-O {[%emt 0:01:16]} 10. Bg5 {[%emt 0:00:34]} Ng6 {[%emt 0:00:56]} 11. h4 {[%emt 0:00:15]} h6 {[%emt 0:04:16]} 12. h5 {[%emt 0:00:07]} Nf4 {[%emt 0:01:43]} 13. Bxf4 {[%emt 0:00:06]} exf4 {[%emt 0:00:06]} 14. Nbd2 {[%emt 0:01:19]} Bg4 {[%emt 0:01:09]} 15. e5 {[%emt 0:04:23]} dxe5 {[%emt 0:05:20]} 16. Nxe5 {[%emt 0:00:11]} Qe7 {[%emt 0:01:02]} 17. d4 {[%emt 0:00:20]} Nd7 {[%emt 0:03:22]} 18. O-O {[%emt 0:01:08]} Nxe5 {[%emt 0:01:11]} 19. Rfe1 {[%emt 0:00:18]} Qh4 {[%emt 0:02:29]} 20. Rxe5 {[%emt 0:00:19]} Bxh5 {[%emt 0:01:41]} 21. Rae1 {[%emt 0:09:20]} Bg6 {[%emt 0:06:53]} 22. Nf3 {[%emt 0:00:16]} Qg4 {[%emt 0:02:20]} 23. Be2 {[%emt 0:03:03]} Qd7 {[%emt 0:01:54]} 24. Nh4 {[%emt 0:03:32]} Bh7 {[%emt 0:01:28]} 25. Bf3 {[%emt 0:00:43]} Rab8 {[%emt 0:04:26] normal} 26. Bh5 {[%emt 0:01:24] normal} 1/2-1/2

[Event "GER-ch Youth U10 2019"]
[Site "Willingen"]
[Date "2019.06.15"]
[Round "11.9"]
[White "Dorendorf, Mika"]
[Black "Malinowsky, Levi"]
[Result "1/2-1/2"]
[ECO "C55"]
[WhiteElo "1398"]
[BlackElo "1400"]
[Annotator "NA"]
[PlyCount "51"]
[EventDate "2019.06.07"]
[EventType "swiss"]
[EventRounds "11"]
[EventCountry "GER"]
[SourceTitle "playchess.com"]
[Source "ChessBase"]
[SourceQuality "1"]
[TimeControl "40/4500+30:900+30"]

1. e4 {[%emt 0:00:00]} e5 {[%emt 0:00:00]} 2. Nf3 {[%emt 0:00:00]} Nc6 {[%emt 0:00:18]} 3. d4 {[%emt 0:01:29]} exd4 {[%emt 0:00:15]} 4. Bc4 {[%emt 0:00:58]} Nf6 {[%emt 0:00:32]} 5. O-O {[%emt 0:00:38]} d6 {[%emt 0:03:49]} 6. Nxd4 {[%emt 0:05:47]} Ne5 {[%emt 0:02:37]} 7. Bd3 {[%emt 0:04:42]} Nxd3 {[%emt 0:02:51]} 8. cxd3 {[%emt 0:05:48]} Be7 {[%emt 0:01:34]} 9. Nc3 {[%emt 0:06:50]} O-O {[%emt 0:00:52]} 10. h3 {[%emt 0:08:45]} d5 {[%emt 0:01:45]} 11. e5 {[%emt 0:04:41]} Nd7 {[%emt 0:00:33]} 12. Bf4 {[%emt 0:01:57]} Nc5 {[%emt 0:02:40]} 13. Nb3 {[%emt 0:04:19]} Nxb3 {[%emt 0:01:47]} 14. Qxb3 {[%emt 0:00:56]} d4 {[%emt 0:02:23]} 15. Nd5 {[%emt 0:03:32]} b6 {[%emt 0:04:10]} 16. Nxe7+ {[%emt 0:00:10]} Qxe7 {[%emt 0:00:15]} 17. Rac1 {[%emt 0:03:50]} c5 {[%emt 0:00:34]} 18. Qd1 {[%emt 0:04:35]} Bb7 {[%emt 0:01:21]} 19. Qg4 {[%emt 0:01:51]} Qe6 {[%emt 0:05:09]} 20. Qxe6 {[%emt 0:04:25]} fxe6 {[%emt 0:00:09]} 21. Bg5 {[%emt 0:01:30]} Rf5 {[%emt 0:01:16]} 22. f4 {[%emt 0:02:18]} Raf8 {[%emt 0:02:26]} 23. Be7 {[%emt 0:01:41]} R8f7 {[%emt 0:00:38]} 24. Bg5 {[%emt 0:00:30]} Rf8 {[%emt 0:04:44] normal} 25. g4 R5f7 26. Rf2 {normal} 1/2-1/2